fUST/lending_fUST_20250419
["ID","MTS","AMOUNT","RATE_DAILY","PERIOD"]
[358370020,1745005841615,-795.64,0.00021917,2]
[358370021,1745005841625,-536.56,0.00021917,2]
[358370022,1745005841634,-793.77,0.00021917,2]
[358370023,1745005841644,-500.0,0.00021917,2]
[358370024,1745005841654,-500.0,0.00021917,2]
[358370025,1745005841663,-500.0,0.00021917,2]
[358370026,1745005841673,-500.0,0.00021917,2]
[358370027,1745005841683,-500.0,0.00021917,2]
[358370028,1745005841693,-990.75,0.00021917,2]
[358370029,1745005841703,-500.0,0.00021917,2]
[358370030,1745005841714,-500.0,0.00021917,2]
[358370031,1745005841724,-955.84,0.00021917,2]
[358370032,1745005841733,-500.0,0.00021917,2]
[358370033,1745005841743,-500.0,0.00021917,2]
[358370034,1745005841753,-500.0,0.00021917,2]
[358370035,1745005841763,-500.0,0.00021917,2]
[358370036,1745005841773,-500.0,0.00021917,2]
[358370037,1745005841782,-500.0,0.00021917,2]
[358370038,1745005841792,-500.0,0.00021917,2]
[358370039,1745005841801,-500.0,0.00021917,2]
[358370040,1745005841811,-265.99824438,0.00021917,2]
[358370041,1745005841820,-500.0,0.00021917,2]
[358370042,1745005841830,-334.905078,0.00021917,2]
[358370043,1745005841853,-165.094922,0.00021917,2]
[358370044,1745005841863,-500.0,0.00021917,2]
[358370045,1745005841872,-158.450075,0.00021917,2]
[358370046,1745005841884,-341.549925,0.00021917,2]
[358370047,1745005841894,-500.0,0.00021917,2]
[358370048,1745005841904,-500.0,0.00021917,2]
[358370049,1745005841913,-500.0,0.00021917,2]
[358370050,1745005841923,-500.0,0.00021917,2]
[358370051,1745005841933,-500.0,0.00021917,2]
[358370052,1745005841942,-293.23550088,0.00021917,2]
[358370053,1745005841963,-206.76449912,0.00021917,2]
[358370054,1745005841973,-500.0,0.00021917,2]
[358370055,1745005841982,-500.0,0.00021917,2]
[358370056,1745005841992,-500.0,0.00021917,2]
[358370057,1745005842002,-600.08,0.00021917,2]
[358370058,1745005842011,-500.0,0.00021917,2]
[358370059,1745005842020,-875.03,0.00021917,2]
[358370060,1745005842030,-500.0,0.00021917,2]
[358370061,1745005842039,-264.05047362,0.00021917,2]
[358370062,1745005842051,-635.33952638,0.00021917,2]
[358370063,1745005842060,-500.0,0.00021917,2]
[358370064,1745005842070,-326.93742869,0.00021917,2]
[358370076,1745005842901,-173.06257131,0.00021917,2]
[358370077,1745005842912,-1226.0,0.00021917,2]
[358370078,1745005842921,-500.0,0.00021917,2]
[358370079,1745005842930,-500.0,0.00021917,2]
[358370080,1745005842939,-500.0,0.00021917,2]
[358370081,1745005842949,-500.0,0.00021917,2]
[358370082,1745005842957,-500.0,0.00021917,2]
[358370083,1745005842966,-500.0,0.00021917,2]
[358370084,1745005842975,-1752.75,0.00021917,2]
[358370085,1745005842985,-500.0,0.00021917,2]
[358370086,1745005842995,-500.0,0.00021917,2]
[358370087,1745005843004,-500.0,0.00021917,2]
[358370089,1745005843014,-1114.82,0.00021917,2]
[358370091,1745005843023,-500.0,0.00021917,2]
[358370093,1745005843032,-500.0,0.00021917,2]
[358370095,1745005843042,-956.74,0.00021917,2]
[358370098,1745005843052,-500.0,0.00021917,2]
[358370100,1745005843061,-500.0,0.00021917,2]
[358370101,1745005843071,-500.0,0.00021917,2]
[358370102,1745005843080,-500.0,0.00021917,2]
[358370103,1745005843089,-500.0,0.00021917,2]
[358370104,1745005843099,-500.0,0.00021917,2]
[358370105,1745005843109,-500.0,0.00021917,2]
[358370106,1745005843120,-151.0,0.00021917,2]
[358370107,1745005843129,-276.870048,0.00021917,2]
[358370108,1745005843138,-500.0,0.00021917,2]
[358370109,1745005843148,-500.0,0.00021917,2]
[358370110,1745005843157,-500.0,0.00021917,2]
[358370111,1745005843167,-500.0,0.00021917,2]
[358370112,1745005843176,-500.0,0.00021917,2]
[358370113,1745005843186,-500.0,0.00021917,2]
[358370114,1745005843195,-500.0,0.00021917,2]
[358370115,1745005843205,-500.0,0.00021917,2]
[358370116,1745005843214,-500.0,0.00021917,2]
[358370117,1745005843224,-500.0,0.00021917,2]
[358370118,1745005843233,-538.4,0.00021917,2]
[358370119,1745005843242,-574.52,0.00021917,2]
[358370120,1745005843251,-879.92,0.00021917,2]
[358370121,1745005843260,-600.34270891,0.00021917,2]
[358370122,1745005843269,-500.0,0.00021917,2]
[358370123,1745005843278,-500.0,0.00021917,2]
[358370124,1745005843288,-151.0,0.00021917,2]
[358370125,1745005843297,-151.0,0.00021917,2]
[358370126,1745005843306,-500.0,0.00021917,2]
[358370127,1745005843316,-562.10566099,0.00021917,2]
[358370128,1745005843325,-529.51,0.00021917,2]
[358370129,1745005843335,-500.0,0.00021917,2]
[358370130,1745005843345,-500.0,0.00021917,2]
[358370131,1745005843354,-500.0,0.00021917,2]
[358370132,1745005843364,-500.0,0.00021917,2]
[358370133,1745005843373,-533.63,0.00021917,2]
[358370134,1745005843383,-822.16,0.00021917,2]
[358370135,1745005843392,-500.0,0.00021917,2]
[358370136,1745005843400,-500.0,0.00021917,2]
[358370137,1745005843410,-500.0,0.00021917,2]
[358370138,1745005843419,-500.0,0.00021917,2]
[358370139,1745005843429,-500.0,0.00021917,2]
[358370140,1745005843438,-500.0,0.00021917,2]
[358370141,1745005843448,-500.0,0.00021917,2]
[358370142,1745005843457,-500.0,0.00021917,2]
[358370143,1745005843466,-500.0,0.00021917,2]
[358370144,1745005843476,-500.0,0.00021917,2]
[358370145,1745005843486,-500.0,0.00021917,2]
[358370146,1745005843495,-500.0,0.00021917,2]
[358370147,1745005843504,-500.0,0.00021917,2]
[358370148,1745005843514,-500.0,0.00021917,2]
[358370149,1745005843523,-627.29966823,0.00021917,2]
[358370150,1745005843534,-500.0,0.00021917,2]
[358370151,1745005843544,-500.0,0.00021917,2]
[358370152,1745005843553,-167.01157647,0.00021917,2]
[358370153,1745005843563,-1519.74,0.00021917,2]
[358370154,1745005843572,-500.0,0.00021917,2]
[358370155,1745005843581,-500.0,0.00021917,2]
[358370156,1745005843591,-500.0,0.00021917,2]
[358370157,1745005843600,-500.0,0.00021917,2]
[358370158,1745005843609,-500.0,0.00021917,2]
[358370159,1745005843618,-500.0,0.00021917,2]
[358370160,1745005843628,-544.63,0.00021917,2]
[358370161,1745005843637,-500.0,0.00021917,2]
[358370162,1745005843646,-500.0,0.00021917,2]
[358370163,1745005843655,-500.0,0.00021917,2]
[358370164,1745005843665,-3446.17,0.00021917,2]
[358370165,1745005843674,-500.0,0.00021917,2]
[358370166,1745005843683,-500.0,0.00021917,2]
[358370167,1745005843692,-1111.79,0.00021917,2]
[358370168,1745005843702,-500.0,0.00021917,2]
[358370169,1745005843711,-500.0,0.00021917,2]
[358370170,1745005843720,-500.0,0.00021917,2]
[358370171,1745005843730,-500.0,0.00021917,2]
[358370172,1745005843739,-500.0,0.00021917,2]
[358370173,1745005843748,-500.0,0.00021917,2]
[358370174,1745005843757,-1440.3,0.00021917,2]
[358370175,1745005843766,-500.0,0.00021917,2]
[358370176,1745005843777,-500.0,0.00021917,2]
[358370177,1745005843787,-500.0,0.00021917,2]
[358370178,1745005843797,-500.0,0.00021917,2]
[358370179,1745005843806,-500.0,0.00021917,2]
[358370180,1745005843816,-806.07,0.00021917,2]
[358370181,1745005843825,-665.49,0.00021917,2]
[358370182,1745005843834,-500.0,0.00021917,2]
[358370183,1745005843843,-500.0,0.00021917,2]
[358370184,1745005843853,-707.27,0.00021917,2]
[358370185,1745005843862,-628.87,0.00021917,2]
[358370186,1745005843871,-500.0,0.00021917,2]
[358370187,1745005843881,-500.0,0.00021917,2]
[358370188,1745005843890,-658.33,0.00021917,2]
[358370189,1745005843899,-621.55,0.00021917,2]
[358370190,1745005843908,-500.0,0.00021917,2]
[358370191,1745005843917,-500.0,0.00021917,2]
[358370192,1745005843927,-156.498667,0.00021917,2]
[358370193,1745005843936,-500.0,0.00021917,2]
[358370194,1745005843946,-500.0,0.00021917,2]
[358370195,1745005843955,-1240.03,0.00021917,2]
[358370196,1745005843965,-500.0,0.00021917,2]
[358370197,1745005843974,-550.42,0.00021917,2]
[358370198,1745005843983,-500.0,0.00021917,2]
[358370199,1745005843992,-151.0,0.00021917,2]
[358370200,1745005844002,-500.0,0.00021917,2]
[358370201,1745005844011,-500.0,0.00021917,2]
[358370202,1745005844020,-500.0,0.00021917,2]
[358370203,1745005844029,-575.66,0.00021917,2]
[358370204,1745005844039,-500.0,0.00021917,2]
[358370205,1745005844048,-574.73,0.00021917,2]
[358370206,1745005844057,-923.96,0.00021917,2]
[358370207,1745005844066,-500.0,0.00021917,2]
[358370208,1745005844075,-500.0,0.00021917,2]
[358370209,1745005844085,-500.0,0.00021917,2]
[358370210,1745005844094,-868.75,0.00021917,2]
[358370211,1745005844103,-500.0,0.00021917,2]
[358370212,1745005844112,-914.72,0.00021917,2]
[358370213,1745005844125,-500.0,0.00021917,2]
[358370214,1745005844135,-500.0,0.00021917,2]
[358370215,1745005844144,-500.0,0.00021917,2]
[358370216,1745005844153,-1404.12,0.00021917,2]
[358370217,1745005844164,-500.0,0.00021917,2]
[358370218,1745005844173,-756.89,0.00021917,2]
[358370219,1745005844183,-500.0,0.00021917,2]
[358370220,1745005844192,-500.0,0.00021917,2]
[358370221,1745005844203,-151.0,0.00021917,2]
[358370222,1745005844212,-640.35,0.00021917,2]
[358370223,1745005844222,-525.51340288,0.00021917,2]
[358370224,1745005844231,-151.0,0.00021917,2]
[358370225,1745005844240,-500.0,0.00021917,2]
[358370226,1745005844250,-500.0,0.00021917,2]
[358370227,1745005844260,-151.0,0.00021917,2]
[358370228,1745005844269,-151.0,0.00021917,2]
[358370229,1745005844278,-500.0,0.00021917,2]
[358370230,1745005844288,-785.7,0.00021917,2]
[358370231,1745005844297,-780.35,0.00021917,2]
[358370232,1745005844306,-500.0,0.00021917,2]
[358370233,1745005844462,-1767.53,0.00021917,2]
[358370234,1745005844472,-500.0,0.00021917,2]
[358370235,1745005844482,-500.0,0.00021917,2]
[358370236,1745005844492,-501.04922934,0.00021917,2]
[358370237,1745005844501,-765.75,0.00021917,2]
[358370238,1745005844511,-1000.0,0.00021917,2]
[358370239,1745005844520,-505.52373712,0.00021917,2]
[358370240,1745005844529,-500.0,0.00021917,2]
[358370241,1745005844539,-500.0,0.00021917,2]
[358370242,1745005844549,-610.25,0.00021917,2]
[358370243,1745005844558,-1134.14,0.00021917,2]
[358370244,1745005844568,-608.98,0.00021917,2]
[358370245,1745005844577,-1927.17,0.00021917,2]
[358370246,1745005844587,-500.0,0.00021917,2]
[358370247,1745005844596,-500.0,0.00021917,2]
[358370248,1745005844606,-500.0,0.00021917,2]
[358370249,1745005844615,-500.0,0.00021917,2]
[358370250,1745005844625,-500.0,0.00021917,2]
[358370251,1745005844634,-500.0,0.00021917,2]
[358370252,1745005844644,-500.0,0.00021917,2]
[358370253,1745005844653,-500.0,0.00021917,2]
[358370254,1745005844662,-582.22,0.00021917,2]
[358370255,1745005844671,-500.0,0.00021917,2]
[358370256,1745005844680,-500.0,0.00021917,2]
[358370257,1745005844689,-553.74,0.00021917,2]
[358370258,1745005844699,-500.0,0.00021917,2]
[358370259,1745005844708,-500.0,0.00021917,2]
[358370260,1745005844718,-875.6,0.00021917,2]
[358370261,1745005844727,-500.0,0.00021917,2]
[358370262,1745005844736,-500.0,0.00021917,2]
[358370263,1745005844745,-500.0,0.00021917,2]
[358370264,1745005844755,-500.0,0.00021917,2]
[358370265,1745005844764,-500.0,0.00021917,2]
[358370266,1745005844774,-1467.8,0.00021917,2]
[358370267,1745005844783,-500.0,0.00021917,2]
[358370268,1745005844793,-500.0,0.00021917,2]
[358370269,1745005844802,-907.63,0.00021917,2]
[358370270,1745005844811,-500.0,0.00021917,2]
[358370271,1745005844821,-500.0,0.00021917,2]
[358370272,1745005844832,-500.0,0.00021917,2]
[358370273,1745005844842,-500.0,0.00021917,2]
[358370274,1745005844851,-501.16050173,0.00021917,2]
[358370275,1745005844860,-669.74,0.00021917,2]
[358370276,1745005844870,-500.0,0.00021917,2]
[358370277,1745005844878,-500.0,0.00021917,2]
[358370278,1745005844887,-1301.92,0.00021917,2]
[358370279,1745005844897,-500.0,0.00021917,2]
[358370280,1745005844906,-917.9,0.00021917,2]
[358370281,1745005844915,-500.0,0.00021917,2]
[358370282,1745005844924,-500.0,0.00021917,2]
[358370283,1745005844933,-500.0,0.00021917,2]
[358370284,1745005844943,-500.0,0.00021917,2]
[358370285,1745005844952,-500.0,0.00021917,2]
[358370286,1745005844961,-478.85522109,0.00021917,2]
[358370287,1745005844969,-500.0,0.00021917,2]
[358370288,1745005844979,-500.0,0.00021917,2]
[358370289,1745005844989,-500.0,0.00021917,2]
[358370290,1745005844998,-1101.1,0.00021917,2]
[358370291,1745005845008,-500.0,0.00021917,2]
[358370292,1745005845018,-500.0,0.00021917,2]
[358370293,1745005845027,-500.0,0.00021917,2]
[358370294,1745005845036,-548.88,0.00021917,2]
[358370295,1745005845046,-500.0,0.00021917,2]
[358370296,1745005845055,-500.0,0.00021917,2]
[358370297,1745005845064,-500.0,0.00021917,2]
[358370298,1745005845074,-500.0,0.00021917,2]
[358370299,1745005845083,-541.5,0.00021917,2]
[358370300,1745005845092,-692.67,0.00021917,2]
[358370301,1745005845102,-500.0,0.00021917,2]
[358370302,1745005845111,-627.63,0.00021917,2]
[358370303,1745005845126,-973.46,0.00021917,2]
[358370304,1745005845135,-500.0,0.00021917,2]
[358370305,1745005845145,-500.0,0.00021917,2]
[358370306,1745005845154,-500.0,0.00021917,2]
[358370307,1745005845164,-500.0,0.00021917,2]
[358370308,1745005845173,-500.00189457,0.00021917,2]
[358370309,1745005845182,-500.0,0.00021917,2]
[358370310,1745005845191,-500.0,0.00021917,2]
[358370311,1745005845202,-535.09,0.00021917,2]
[358370312,1745005845212,-500.0,0.00021917,2]
[358370313,1745005845222,-870.54,0.00021917,2]
[358370314,1745005845231,-500.0,0.00021917,2]
[358370316,1745005845240,-500.0,0.00021917,2]
[358370317,1745005845249,-500.0,0.00021917,2]
[358370318,1745005845258,-328.34998022,0.00021917,2]
[358370319,1745005845268,-1404.98,0.00021917,2]
[358370320,1745005845277,-500.0,0.00021917,2]
[358370321,1745005845286,-500.0,0.00021917,2]
[358370322,1745005845295,-886.01,0.00021917,2]
[358370323,1745005845304,-500.0,0.00021917,2]
[358370324,1745005845314,-1339.79,0.00021917,2]
[358370325,1745005845323,-151.0,0.00021917,2]
[358370326,1745005845332,-161.459995,0.00021917,2]
[358370327,1745005845342,-500.0,0.00021917,2]
[358370329,1745005845353,-501.08398391,0.00021917,2]
[358370331,1745005845362,-500.0,0.00021917,2]
[358370333,1745005845371,-500.0,0.00021917,2]
[358370335,1745005845380,-500.0,0.00021917,2]
[358370337,1745005845390,-726.39,0.00021917,2]
[358370339,1745005845399,-500.0,0.00021917,2]
[358370342,1745005845408,-504.74679121,0.00021917,2]
[358370345,1745005845418,-500.0,0.00021917,2]
[358370348,1745005845426,-500.0,0.00021917,2]
[358370349,1745005845435,-500.0,0.00021917,2]
[358370350,1745005845443,-500.0,0.00021917,2]
[358370351,1745005845452,-1037.74,0.00021917,2]
[358370353,1745005845463,-526.39,0.00021917,2]
[358370355,1745005845473,-797.17,0.00021917,2]
[358370357,1745005845483,-500.0,0.00021917,2]
[358370360,1745005845493,-500.0,0.00021917,2]
[358370362,1745005845503,-500.0,0.00021917,2]
[358370365,1745005845512,-500.0,0.00021917,2]
[358370367,1745005845522,-500.0,0.00021917,2]
[358370369,1745005845532,-500.0,0.00021917,2]
[358370371,1745005845541,-1765.86,0.00021917,2]
[358370373,1745005845551,-500.0,0.00021917,2]
[358370376,1745005845560,-500.0,0.00021917,2]
[358370378,1745005845570,-500.0,0.00021917,2]
[358370381,1745005845579,-155.586339,0.00021917,2]
[358370384,1745005845588,-500.0,0.00021917,2]
[358370386,1745005845599,-825.22,0.00021917,2]
[358370388,1745005845608,-1162.54,0.00021917,2]
[358370390,1745005845619,-500.0,0.00021917,2]
[358370392,1745005845628,-500.0,0.00021917,2]
[358370394,1745005845638,-500.0,0.00021917,2]
[358370396,1745005845648,-500.0,0.00021917,2]
[358370398,1745005845657,-500.0,0.00021917,2]
[358370400,1745005845667,-500.0,0.00021917,2]
[358370403,1745005845676,-500.0,0.00021917,2]
[358370405,1745005845686,-500.0,0.00021917,2]
[358370407,1745005845695,-770.32,0.00021917,2]
[358370409,1745005845704,-190.57530284,0.00021917,2]
[358370412,1745005846101,-12559.7366029,0.00020088,2]
[358370413,1745005846111,-309.42469716,0.00021917,2]
[358370414,1745005846123,-500.0,0.00021917,2]
[358370415,1745005846133,-500.0,0.00021917,2]
[358370416,1745005846142,-577.23,0.00021917,2]
[358370417,1745005846152,-500.0,0.00021917,2]
[358370418,1745005846163,-292.87652876,0.00021917,2]
[358370419,1745005846175,-351.59094771,0.00021917,2]
[358370476,1745007031858,-300.0,0.00018483,2]
[358370479,1745007031868,-300.0,0.00018483,2]
[358370481,1745007031878,-314.66715082,0.00018484,2]
[358370482,1745007031888,-500.0,0.00018484,2]
[358370483,1745007031897,-500.0,0.00018484,2]
[358370484,1745007031907,-344.33022843,0.00018484,2]
[358370485,1745007031963,-155.66977157,0.00018484,2]
[358370486,1745007031973,-500.0,0.00018484,2]
[358370487,1745007031982,-500.0,0.00018484,2]
[358370488,1745007031991,-500.0,0.00018484,2]
[358370489,1745007032001,-500.0,0.00018484,2]
[358370490,1745007032011,-500.0,0.00018484,2]
[358370491,1745007032021,-500.0,0.00018484,2]
[358370492,1745007032030,-500.0,0.00018484,2]
[358370493,1745007032040,-500.0,0.00018484,2]
[358370494,1745007032049,-500.0,0.00018484,2]
[358370495,1745007032058,-500.0,0.00018484,2]
[358370496,1745007032069,-500.0,0.00018484,2]
[358370497,1745007032078,-500.0,0.00018484,2]
[358370498,1745007032088,-500.0,0.00018484,2]
[358370499,1745007032099,-500.0,0.00018484,2]
[358370500,1745007032108,-500.0,0.00018484,2]
[358370501,1745007032118,-500.0,0.00018484,2]
[358370502,1745007032129,-500.0,0.00018484,2]
[358370503,1745007032138,-396.54204587,0.00018484,2]
[358370504,1745007032148,-500.0,0.00018484,2]
[358370505,1745007032158,-173.21726619,0.00018484,2]
[358370506,1745007032168,-36.58343452,0.00018484,2]
[358370511,1745007037977,-463.41656548,0.00018484,2]
[358370512,1745007037988,-500.0,0.00018484,2]
[358370513,1745007037997,-500.0,0.00018484,2]
[358370514,1745007038007,-500.0,0.00018484,2]
[358370515,1745007038017,-500.0,0.00018484,2]
[358370516,1745007038026,-500.0,0.00018484,2]
[358370517,1745007038036,-500.0,0.00018484,2]
[358370518,1745007038045,-500.0,0.00018484,2]
[358370519,1745007038054,-500.0,0.00018484,2]
[358370520,1745007038064,-500.0,0.00018484,2]
[358370521,1745007038073,-500.0,0.00018484,2]
[358370522,1745007038082,-500.0,0.00018484,2]
[358370523,1745007038092,-500.0,0.00018484,2]
[358370524,1745007038101,-253.63217211,0.00018484,2]
[358370525,1745007038113,-246.36782789,0.00018484,2]
[358370526,1745007038122,-500.0,0.00018484,2]
[358370527,1745007038131,-500.0,0.00018484,2]
[358370528,1745007038140,-500.0,0.00018484,2]
[358370529,1745007038149,-500.0,0.00018484,2]
[358370530,1745007038158,-500.0,0.00018484,2]
[358370532,1745007038167,-500.0,0.00018484,2]
[358370534,1745007038177,-500.0,0.00018484,2]
[358370535,1745007038187,-500.0,0.00018484,2]
[358370536,1745007038196,-500.0,0.00018484,2]
[358370537,1745007038205,-500.0,0.00018484,2]
[358370538,1745007038215,-500.0,0.00018484,2]
[358370539,1745007038224,-500.0,0.00018484,2]
[358370540,1745007038233,-500.0,0.00018484,2]
[358370541,1745007038244,-500.0,0.00018484,2]
[358370542,1745007038255,-500.0,0.00018484,2]
[358370543,1745007038264,-500.0,0.00018484,2]
[358370544,1745007038274,-500.0,0.00018484,2]
[358370545,1745007038283,-500.0,0.00018484,2]
[358370546,1745007038292,-500.0,0.00018484,2]
[358370547,1745007038301,-500.0,0.00018484,2]
[358370548,1745007038312,-54.13217216,0.00018484,2]
[358370549,1745007038328,-445.86782784,0.00018484,2]
[358370550,1745007038338,-500.0,0.00018484,2]
[358370551,1745007038348,-7.01886068,0.00018484,2]
[358370552,1745007038360,-252.03712127,0.00018484,2]
[358370553,1745007038369,-237.17862101,0.000189,2]
[358370554,1745007038379,-999.19042977,0.00019111,2]
[358370555,1745007038388,-517.99811142,0.00019211,2]
[358370556,1745007038403,-663.23739488,0.00019211,2]
[358370557,1745007038426,-1021.532452,0.00019211,2]
[358370558,1745007038437,-9056.94472036,0.00019211,2]
[358370584,1745007040225,-10195.86322204,0.00019211,2]
[358370586,1745007040235,-845.909352,0.00019267,2]
[358370588,1745007040245,-6823.305045,0.00019379,2]
[358370590,1745007040254,-182.6097466,0.00019534,2]
[358370592,1745007040264,-1510.07314374,0.000199,2]
[358370594,1745007040273,-337.0966198,0.00020146,2]
[358370596,1745007040283,-420.0,0.00020157,2]
[358370598,1745007040293,-160.0,0.00020169,2]
[358370600,1745007040303,-839.29847495,0.00020169,2]
[358370602,1745007040312,-160.0,0.00020169,2]
[358370605,1745007040323,-420.0,0.00020256,2]
[358370607,1745007040332,-1996.3172822,0.00020331,2]
[358370609,1745007040342,-1510.07314374,0.00020693,2]
[358370611,1745007040352,-500.0,0.00020915,2]
[358370613,1745007040361,-279.31407861,0.00020915,2]
[358370615,1745007040371,-250.0,0.00021367,2]
[358370617,1745007040380,-155.80117387,0.00021367,2]
[358370619,1745007040389,-150.543,0.00021467,2]
[358370621,1745007040398,-544.0,0.00021467,2]
[358370623,1745007040408,-707.0,0.00021467,2]
[358370625,1745007040418,-2248.0,0.00021467,2]
[358370627,1745007040427,-402.0,0.00021467,2]
[358370629,1745007040436,-216.48,0.00021478,2]
[358370631,1745007040445,-1510.07314374,0.00021486,3]
[358370633,1745007040454,-155.80117386,0.00021517,2]
[358370635,1745007040464,-999.19042975,0.00021652,2]
[358370636,1745007040474,-155.80117386,0.00021667,2]
[358370639,1745007040483,-477.1630095,0.00021697,2]
[358370640,1745007040493,-500.0,0.00021697,2]
[358370642,1745007040501,-317.96,0.000217,2]
[358370644,1745007040511,-62903.58544802,0.00021817,2]
[358370649,1745007040544,-810.27166094,0.00021817,2]
[358370651,1745007040556,-1226.04132791,0.00021817,2]
[358370681,1745007042943,-2090.44795886,0.00020169,2]
[358370682,1745007042955,-1644.67106572,0.00020169,2]
[358370683,1745007042991,-8824.61757832,0.00020169,2]
[358370684,1745007043002,-6197.95728219,0.00021817,2]
[358370685,1745007043013,-2743.90981451,0.00021817,2]
[358370686,1745007043025,-468.942,0.00021817,2]
[358370687,1745007043037,-546.11416967,0.00021817,2]
[358370688,1745007043049,-1678.65381951,0.00021817,2]
[358370691,1745007046322,-500.0,0.00018483,2]
[358370692,1745007046333,-432.94911621,0.00018483,2]
[358370693,1745007046342,-500.0,0.00018483,2]
[358370694,1745007046351,-500.0,0.00018483,2]
[358370695,1745007046361,-500.0,0.00018483,2]
[358370696,1745007046371,-500.0,0.00018483,2]
[358370697,1745007046381,-217.32172662,0.00018483,2]
[358370698,1745007046391,-30355.44402123,0.00021817,2]
[358370699,1745007046409,-1566.82365562,0.00021817,2]
[358370705,1745007279207,180.2144552,0.00017223,2]
[358370708,1745007794721,990.6824955,0.00017658,2]
[358370709,1745007797039,529.002145,0.00017568,2]
[358370710,1745007923521,431.7232139,0.00017464,2]
[358370736,1745008142536,654.853524,0.00017726,2]
[358370742,1745008179255,181.51539682,0.00017223,2]
[358370789,1745008232064,-199.9956401,0.00018283,2]
[358370791,1745008232074,-981.65061294,0.00018374,2]
[358370793,1745008232083,-1000.0,0.00018383,2]
[358370795,1745008232094,-199.56747498,0.00018383,2]
[358370797,1745008232103,-243.32056449,0.000184,2]
[358370799,1745008232112,-300.0,0.00018473,2]
[358370801,1745008232122,-300.0,0.00018473,2]
[358370804,1745008232131,-500.0,0.00018474,2]
[358370807,1745008232141,-423.44427255,0.00018474,2]
[358370810,1745008232150,-500.0,0.00018474,2]
[358370812,1745008232159,-500.0,0.00018474,2]
[358370814,1745008232168,-500.0,0.00018474,2]
[358370816,1745008232178,-500.0,0.00018474,2]
[358370818,1745008232187,-196.88061053,0.00018474,2]
[358370820,1745008232196,-500.0,0.00018474,2]
[358370821,1745008232206,-500.0,0.00018474,2]
[358370823,1745008232215,-500.0,0.00018474,2]
[358370825,1745008232224,-500.0,0.00018474,2]
[358370826,1745008232234,-500.0,0.00018474,2]
[358370827,1745008232243,-500.0,0.00018474,2]
[358370828,1745008232252,-500.0,0.00018474,2]
[358370829,1745008232262,-500.0,0.00018474,2]
[358370831,1745008232271,-500.0,0.00018474,2]
[358370832,1745008232281,-500.0,0.00018474,2]
[358370833,1745008232290,-500.0,0.00018474,2]
[358370834,1745008232299,-500.0,0.00018474,2]
[358370835,1745008232308,-500.0,0.00018474,2]
[358370836,1745008232317,-500.0,0.00018474,2]
[358370837,1745008232325,-500.0,0.00018474,2]
[358370838,1745008232337,-500.0,0.00018474,2]
[358370839,1745008232346,-500.0,0.00018474,2]
[358370840,1745008232355,-569.41667581,0.00018474,2]
[358370841,1745008232364,-500.0,0.00018474,2]
[358370842,1745008232375,-500.0,0.00018474,2]
[358370843,1745008232384,-500.0,0.00018474,2]